bitfinex/quotes_BTCUSD_20241009
["timestamp","ask_amount","ask_price","bid_price","bid_amount"]
[1728454226423,0.75426573,62567.0,62566.0,0.003642]
[1728454226885,0.64917733,62567.0,62566.0,0.003642]
[1728454227320,0.57748021,62567.0,62566.0,0.003642]
[1728454227778,0.64917733,62567.0,62566.0,0.003642]
[1728454228014,0.57748021,62567.0,62566.0,0.003642]
[1728454228448,0.6252721,62567.0,62566.0,0.003642]
[1728454230391,0.60021814,62567.0,62566.0,0.003642]
[1728454230604,0.57801814,62567.0,62566.0,0.003642]
[1728454231705,0.57801785,62567.0,62566.0,0.003642]
[1728454232187,0.48253823,62567.0,62566.0,0.003642]
[1728454234438,0.43474663,62567.0,62566.0,0.003642]
[1728454234895,0.43488948,62567.0,62566.0,0.003642]
[1728454235349,0.50657689,62567.0,62566.0,0.003642]
[1728454238647,0.43488948,62567.0,62566.0,0.003642]
[1728454239860,0.70697957,62567.0,62566.0,0.003642]
[1728454240346,0.63439636,62567.0,62566.0,0.003642]
[1728454240468,0.97274469,62567.0,62566.0,0.003642]
[1728454240685,0.159836,62564.0,62563.0,0.001642]
[1728454240904,0.95358353,62564.0,62563.0,0.001642]
[1728454241106,0.8231044,62564.0,62563.0,0.001642]
[1728454241339,1.07039572,62564.0,62563.0,0.001642]
[1728454241538,1.0703385,62564.0,62563.0,0.001642]
[1728454241776,1.0925385,62564.0,62563.0,0.001642]
[1728454242780,1.1065385,62564.0,62563.0,0.002642]
[1728454243708,1.1205385,62564.0,62563.0,0.003642]
[1728454245046,1.27595194,62564.0,62563.0,0.003642]
[1728454246382,1.28095194,62564.0,62563.0,0.003642]
[1728454246840,1.4894014,62564.0,62563.0,0.003642]
[1728454247335,1.33398796,62564.0,62563.0,0.003642]
[1728454248939,0.50539265,62558.0,62557.0,0.000821]
[1728454249141,0.83736483,62558.0,62557.0,0.000821]
[1728454249387,1.05115768,62558.0,62557.0,0.000821]
[1728454249620,1.20657112,62558.0,62557.0,0.000821]
[1728454249848,1.45575336,62558.0,62557.0,0.000821]
[1728454250336,1.64015694,62558.0,62557.0,0.002821]
[1728454251015,1.47855058,62558.0,62557.0,0.002821]
[1728454251247,1.63987614,62558.0,62557.0,0.002821]
[1728454251466,1.63787614,62558.0,62557.0,0.002821]
[1728454251890,1.66495498,62558.0,62557.0,0.002821]
[1728454252843,1.34819692,62558.0,62557.0,0.002821]
[1728454253073,1.50952538,62558.0,62557.0,0.002821]
[1728454253293,1.34819692,62558.0,62557.0,0.002821]
[1728454255088,1.43618394,62558.0,62557.0,0.002821]
[1728454257506,1.42863951,62558.0,62557.0,0.002821]
[1728454257931,1.44525975,62558.0,62557.0,0.002821]
[1728454258725,1.42019997,62558.0,62557.0,0.002821]
[1728454259811,1.42019997,62558.0,62553.0,0.000821]
[1728454259812,0.164859,62555.0,62554.0,8.99908705]
[1728454259998,0.9258638,62555.0,62554.0,8.99908705]
[1728454260213,0.93868205,62555.0,62554.0,8.99908705]
[1728454260360,1.185746,62555.0,62554.0,8.99908705]
[1728454260566,1.18565468,62555.0,62554.0,8.99908705]
[1728454261560,1.19365468,62555.0,62554.0,9.00008705]
[1728454261983,1.2188578,62555.0,62554.0,9.00008705]
[1728454262198,1.20279753,62555.0,62554.0,9.00108705]
[1728454263339,1.20265468,62555.0,62554.0,9.00108705]
[1728454263779,1.20279753,62555.0,62554.0,9.00108705]
[1728454264212,1.20267809,62555.0,62554.0,9.00108705]
[1728454265078,1.22773811,62555.0,62554.0,9.00108705]
[1728454267752,1.38315155,62555.0,62554.0,9.00108705]
[1728454268012,1.37081572,62555.0,62554.0,9.00108705]
[1728454268219,1.3457557,62555.0,62554.0,9.00108705]
[1728454268398,1.19034226,62555.0,62554.0,9.00108705]
[1728454269183,1.19029646,62555.0,62554.0,9.00108705]
[1728454271014,1.07031196,62555.0,62554.0,9.00108705]
[1728454271247,0.96672805,62555.0,62554.0,9.00108705]
[1728454271475,0.99178792,62555.0,62554.0,9.00108705]
[1728454272575,0.96672805,62555.0,62554.0,9.00108705]
[1728454273008,0.96672805,62555.0,62554.0,9.00190805]
[1728454273250,0.96837005,62555.0,62554.0,9.09600805]
[1728454273509,0.43692537,62555.0,62554.0,9.2915497]
[1728454273750,0.178501,62555.0,62554.0,9.17170805]
[1728454274432,0.170501,62555.0,62554.0,9.17070805]
[1728454274651,0.161501,62555.0,62554.0,9.16970805]
[1728454274864,0.164501,62555.0,62554.0,9.16970805]
[1728454275053,0.168501,62555.0,62554.0,9.16970805]
[1728454275508,0.164501,62555.0,62554.0,9.16970805]
[1728454275726,0.19255821,62555.0,62554.0,9.16970805]
[1728454275941,0.18955821,62555.0,62554.0,9.16970805]
[1728454276832,0.19155821,62555.0,62554.0,9.16970805]
[1728454277296,0.18955821,62555.0,62554.0,9.16970805]
[1728454277782,0.19155821,62555.0,62554.0,9.16970805]
[1728454278457,0.23933344,62555.0,62554.0,9.16970805]
[1728454280471,0.21427623,62555.0,62554.0,9.16970805]
[1728454281139,0.166501,62555.0,62554.0,9.16970805]
[1728454281357,0.21431741,62555.0,62554.0,9.16970805]
[1728454282069,0.21131741,62555.0,62554.0,9.16970805]
[1728454282540,0.21431741,62555.0,62554.0,9.16970805]
[1728454282782,0.21231741,62555.0,62554.0,9.16970805]
[1728454283043,0.21431741,62555.0,62554.0,9.16970805]
[1728454284136,0.21231741,62555.0,62554.0,9.16970805]
[1728454284374,0.161501,62555.0,62554.0,9.16970805]
[1728454284610,0.163501,62555.0,62554.0,9.16970805]
[1728454284767,0.166501,62555.0,62554.0,9.16970805]
[1728454285318,0.23816384,62555.0,62554.0,9.16970805]
[1728454288819,0.23828965,62555.0,62554.0,9.16970805]
[1728454289984,0.43888572,62555.0,62554.0,9.16970805]
[1728454292892,0.34315336,62555.0,62554.0,9.16970805]
[1728454293419,0.43887156,62555.0,62554.0,9.16970805]
[1728454294058,0.23828148,62555.0,62554.0,9.16970805]
[1728454294270,0.166501,62555.0,62554.0,9.16970805]
[1728454294482,0.34314397,62555.0,62554.0,9.16970805]
[1728454297264,0.166501,62555.0,62554.0,9.16970805]
[1728454297471,0.34313702,62555.0,62554.0,9.16970805]
[1728454297678,0.166501,62555.0,62554.0,9.16970805]
[1728454298783,0.238277,62555.0,62554.0,9.16970805]
[1728454299255,0.166501,62555.0,62554.0,9.2895497]
[1728454300343,0.34314864,62555.0,62554.0,9.2895497]
[1728454300791,0.166501,62555.0,62554.0,9.2895497]
[1728454301927,0.23828419,62555.0,62554.0,9.2895497]
[1728454305029,0.26221192,62555.0,62554.0,9.2895497]
[1728454305292,0.46283867,62555.0,62554.0,9.2895497]
[1728454305530,0.43894611,62555.0,62554.0,9.2895497]
[1728454308632,0.34320002,62555.0,62554.0,9.2895497]
[1728454308960,0.34326334,62555.0,62554.0,9.2895497]
[1728454310494,0.4629754,62555.0,62554.0,9.2895497]
[1728454311792,0.4629754,62555.0,62554.0,9.16970805]
[1728454312221,0.166501,62555.0,62554.0,9.16970805]
[1728454312443,0.34333512,62555.0,62554.0,9.16970805]
[1728454313548,0.46313815,62555.0,62554.0,9.16970805]
[1728454314409,0.34333512,62555.0,62554.0,9.16970805]
[1728454318596,0.48704793,62555.0,62554.0,9.16970805]
[1728454318800,0.49923292,62555.0,62554.0,9.16970805]
[1728454319449,0.35552011,62555.0,62554.0,9.16970805]
[1728454319653,0.34333512,62555.0,62554.0,9.16970805]
[1728454322303,0.3437396,62555.0,62554.0,9.16970805]
[1728454324454,0.1838806,62555.0,62554.0,9.32956905]
[1728454324669,0.1026495,62555.0,62554.0,9.32956905]
[1728454324889,0.07864581,62555.0,62554.0,9.32956905]
[1728454325113,0.006642,62555.0,62554.0,9.32956905]
[1728454325581,0.0496236,62555.0,62554.0,9.32956905]
[1728454325802,0.0496236,62555.0,62554.0,9.33656905]
[1728454326251,0.0496236,62555.0,62554.0,9.33456905]
[1728454326500,0.0496236,62555.0,62554.0,9.4544107]
[1728454326501,0.001642,62555.0,62554.0,9.4544107]
[1728454326716,0.07464581,62555.0,62554.0,9.4594107]
[1728454326931,0.002642,62555.0,62554.0,9.4594107]
[1728454328422,0.05060215,62555.0,62554.0,9.4594107]
[1728454330799,0.05060215,62555.0,62554.0,9.33956905]
[1728454331040,0.162501,62555.0,62554.0,9.17970805]
[1728454331265,0.23445678,62555.0,62554.0,9.17970805]
[1728454331992,0.2594808,62555.0,62554.0,9.17970805]
[1728454332846,0.36454992,62555.0,62554.0,9.17970805]
[1728454333069,0.18755676,62555.0,62554.0,9.17970805]
[1728454333317,0.36455325,62555.0,62554.0,9.17970805]
[1728454333549,0.48442738,62555.0,62554.0,9.17970805]
[1728454334015,0.36455325,62555.0,62554.0,9.17970805]
[1728454334238,0.33949749,62555.0,62554.0,9.17970805]
[1728454335160,0.45937287,62555.0,62554.0,9.17970805]
[1728454335813,0.33949749,62555.0,62554.0,9.17970805]
[1728454336261,0.4593729,62555.0,62554.0,9.17970805]
[1728454336487,0.33949749,62555.0,62554.0,9.17970805]
[1728454339022,0.33949749,62555.0,62554.0,9.2995497]
[1728454340350,0.36455392,62555.0,62554.0,9.2995497]
[1728454347049,0.32459018,62555.0,62554.0,9.4594107]
[1728454347285,0.02769843,62555.0,62554.0,9.4594107]
[1728454349482,0.07565213,62555.0,62554.0,9.2995497]
[1728454349696,0.09963556,62555.0,62554.0,9.2995497]
[1728454351696,0.09961878,62555.0,62554.0,9.4594107]
[1728454352384,0.07564532,62555.0,62554.0,9.4594107]
[1728454353440,0.07564532,62555.0,62554.0,9.2995497]
[1728454355840,0.07564532,62555.0,62554.0,9.4594107]
[1728454356063,0.02769843,62555.0,62554.0,9.4594107]
[1728454356278,0.07564532,62555.0,62554.0,9.4594107]
[1728454356744,0.07564312,62555.0,62554.0,9.4594107]
[1728454358555,0.02769843,62555.0,62554.0,9.4594107]
[1728454358776,0.07564312,62555.0,62554.0,9.4594107]
[1728454359871,0.02769843,62555.0,62554.0,9.4594107]
[1728454379434,0.04794609,62563.0,62561.0,0.319687]
[1728454379654,0.07191914,62565.0,62561.0,0.319687]
[1728454379655,0.04794609,62565.0,62564.0,0.159836]
[1728454379879,0.001642,62566.0,62565.0,0.159833]
[1728454380111,0.0057061,62573.0,62571.0,0.319636]
[1728454380346,0.0057061,62573.0,62572.0,0.45305665]
[1728454381722,0.0067061,62573.0,62572.0,0.45905665]
[1728454381936,0.0067061,62573.0,62572.0,0.48873471]
[1728454382416,0.0077061,62573.0,62572.0,0.49473471]
[1728454393386,0.0077061,62573.0,62572.0,0.59473471]
[1728454394801,0.0077061,62573.0,62572.0,0.59673471]
[1728454395028,0.001642,62580.0,62572.0,0.65871255]
[1728454395277,0.001642,62580.0,62579.0,0.46263965]
[1728454395558,0.001642,62580.0,62579.0,0.61805309]
[1728454395940,0.001642,62580.0,62579.0,0.62005309]
[1728454397055,0.003642,62580.0,62579.0,0.62005309]
[1728454397527,0.004642,62580.0,62579.0,0.62905309]
[1728454397759,0.002642,62580.0,62579.0,0.65873115]
[1728454397978,0.003642,62580.0,62579.0,0.66973115]
[1728454399345,0.003642,62580.0,62579.0,0.67173115]
[1728454402346,0.003642,62580.0,62579.0,0.67594812]
[1728454403489,0.003642,62580.0,62579.0,0.67394812]
[1728454403718,0.003642,62580.0,62579.0,0.36901497]
[1728454403923,0.003642,62580.0,62579.0,0.48885662]
[1728454405039,0.002642,62580.0,62579.0,0.47785662]
[1728454405490,0.002642,62580.0,62579.0,0.47985662]
[1728454405978,0.001642,62580.0,62579.0,0.46885662]
[1728454406436,0.002642,62580.0,62579.0,0.47885662]
[1728454406666,0.002642,62580.0,62579.0,0.48885662]
[1728454406667,0.003642,62580.0,62579.0,0.48885662]
[1728454407132,0.002642,62580.0,62579.0,0.47885662]
[1728454408027,0.003642,62580.0,62579.0,0.48885662]
[1728454409181,0.003642,62580.0,62579.0,0.64427006]
[1728454409404,0.003642,62580.0,62579.0,0.64227006]
[1728454409973,0.003642,62580.0,62579.0,0.64427006]
[1728454410174,0.003642,62580.0,62579.0,0.64227006]
[1728454411475,0.003642,62580.0,62579.0,0.48685662]
[1728454415273,0.003642,62580.0,62579.0,0.48185662]
[1728454416170,0.003642,62580.0,62579.0,0.36201497]
[1728454416380,0.003642,62580.0,62579.0,0.48185662]
[1728454417018,0.003642,62580.0,62579.0,0.23594165]
[1728454417270,0.003642,62580.0,62579.0,0.02]
[1728454417698,0.01477952,62580.0,62579.0,0.02]
[1728454426216,0.01477952,62580.0,62579.0,0.42678736]
[1728454426675,0.003642,62580.0,62579.0,0.42678736]
[1728454432000,0.003642,62580.0,62579.0,0.42878736]
[1728454433700,0.003642,62580.0,62579.0,0.42678736]
[1728454434109,0.003642,62580.0,62579.0,0.42878736]
[1728454434345,0.003642,62580.0,62579.0,0.5892008]
[1728454435735,0.003642,62580.0,62579.0,0.6892008]
[1728454437034,0.003642,62580.0,62579.0,0.6872008]
[1728454437456,0.003642,62580.0,62579.0,0.6892008]
[1728454438518,0.003642,62580.0,62579.0,0.6872008]
[1728454440022,0.003642,62580.0,62579.0,0.6892008]
[1728454440452,0.003642,62580.0,62579.0,0.6872008]
[1728454440883,0.003642,62580.0,62579.0,0.53178736]
[1728454441082,0.003642,62580.0,62579.0,0.52678736]
[1728454441312,0.003642,62580.0,62579.0,0.53178736]
[1728454441706,0.003642,62580.0,62579.0,0.52678736]
[1728454443775,0.003642,62580.0,62579.0,0.53178736]
[1728454444672,0.003642,62580.0,62579.0,0.52678736]
[1728454445088,0.003642,62580.0,62579.0,0.272698]
[1728454445502,0.01956325,62580.0,62579.0,0.272698]
[1728454445943,0.01856325,62580.0,62579.0,0.262698]
[1728454446170,0.01756325,62580.0,62579.0,0.252698]
[1728454446377,0.01756325,62580.0,62579.0,0.256698]
[1728454446611,0.001642,62580.0,62579.0,0.259698]
[1728454446843,0.001642,62580.0,62579.0,0.255698]
[1728454447337,0.001642,62580.0,62579.0,0.003]
[1728454447338,0.01756325,62580.0,62579.0,0.003]
[1728454447777,0.01756325,62580.0,62579.0,0.006]
[1728454448209,0.01756325,62580.0,62579.0,0.165798]
[1728454449071,0.01756325,62580.0,62579.0,0.159798]
[1728454449274,0.01756325,62580.0,62579.0,0.163798]
[1728454449720,0.01756325,62580.0,62579.0,0.161798]
[1728454449992,0.01756325,62580.0,62579.0,0.003]
[1728454450394,0.01756325,62580.0,62579.0,0.002]
[1728454450603,0.10555027,62580.0,62579.0,0.004]
[1728454451035,0.10555027,62580.0,62579.0,0.163798]
[1728454460026,0.10555027,62580.0,62579.0,0.336298]
[1728454469002,0.08962902,62580.0,62579.0,0.336298]
[1728454473266,0.08962902,62580.0,62579.0,0.45613965]
[1728454473516,0.10550257,62580.0,62579.0,0.45613965]
[1728454474475,0.10550257,62580.0,62579.0,0.46031062]
[1728454474947,0.08962902,62580.0,62579.0,0.46031062]
[1728454479613,0.10550257,62580.0,62579.0,0.46031062]
[1728454481431,0.10550257,62580.0,62579.0,0.45613965]
[1728454481681,0.10050257,62580.0,62579.0,0.45613965]
[1728454487465,0.10050257,62580.0,62579.0,0.29634165]
[1728454487674,0.10050257,62580.0,62579.0,0.1009]
[1728454487675,0.33222955,62580.0,62579.0,0.1009]
[1728454487927,0.17243455,62580.0,62579.0,0.1009]
[1728454488374,0.10050257,62580.0,62579.0,0.1009]
[1728454488608,0.26029757,62580.0,62579.0,0.1009]
[1728454488835,0.43733714,62580.0,62579.0,0.1009]
[1728454489054,0.27754214,62580.0,62579.0,0.1009]
[1728454489529,0.10050257,62580.0,62579.0,0.1009]
[1728454490687,0.2775449,62580.0,62579.0,0.1009]
[1728454491572,0.4373399,62580.0,62579.0,0.1009]
[1728454491814,0.5332492,62580.0,62579.0,0.1009]
[1728454492010,0.5332492,62580.0,62579.0,0.004]
[1728454492479,0.5332492,62580.0,62579.0,0.002]
[1728454493184,0.5332492,62580.0,62579.0,0.001642]
[1728454493422,0.5342492,62580.0,62579.0,0.001642]
[1728454493634,0.5350702,62580.0,62579.0,0.001642]
[1728454494308,0.3752752,62580.0,62579.0,0.001642]
[1728454495957,0.37524824,62580.0,62579.0,0.001642]
[1728454496189,0.3752452,62580.0,62579.0,0.001642]
[1728454496908,0.5350402,62580.0,62579.0,0.001642]
[1728454497142,0.5350402,62580.0,62579.0,0.12148365]
[1728454499068,0.43913256,62580.0,62579.0,0.12148365]
[1728454499548,0.55900382,62580.0,62579.0,0.12148365]
[1728454500735,0.55898362,62580.0,62579.0,0.12148365]
[1728454501258,0.7289711,62580.0,62579.0,0.001642]
[1728454501528,0.76057102,62580.0,62579.0,0.001642]
[1728454501771,0.73835504,62580.0,62579.0,0.12148365]
[1728454502011,0.43911382,62580.0,62579.0,0.12148365]
[1728454502249,0.43811382,62580.0,62579.0,0.12148365]
[1728454502489,0.43811382,62580.0,62579.0,0.12348365]
[1728454502490,0.45511382,62580.0,62579.0,0.12348365]
[1728454502951,0.44611382,62580.0,62579.0,0.12248365]
[1728454503184,0.45311382,62580.0,62579.0,0.12348365]
[1728454504424,0.44511382,62580.0,62579.0,0.002642]
[1728454504929,0.45111382,62580.0,62579.0,0.003642]
[1728454509091,0.4509574,62580.0,62579.0,0.003642]
[1728454511038,0.54675114,62580.0,62579.0,0.003642]
[1728454511276,0.54675114,62580.0,62579.0,0.101442]
[1728454511999,0.54675114,62580.0,62579.0,0.14781557]
[1728454512243,0.11432357,62580.0,62579.0,0.38381357]
[1728454512478,0.18616422,62580.0,62579.0,0.38381357]
[1728454512737,0.11432357,62580.0,62579.0,0.38381357]
[1728454513212,0.11432357,62580.0,62579.0,0.22401557]
[1728454513453,0.11432357,62580.0,62579.0,0.177642]
[1728454514384,0.27411857,62580.0,62579.0,0.177642]
[1728454515552,0.34595922,62580.0,62579.0,0.177642]
[1728454516785,0.18616422,62580.0,62579.0,0.177642]
[1728454518383,0.11432357,62580.0,62579.0,0.33744]
[1728454518876,0.11432357,62580.0,62579.0,0.177642]
[1728454520055,0.11432357,62580.0,62579.0,0.5772194]
[1728454520282,0.11432357,62580.0,62579.0,0.33744]
[1728454520802,0.09845002,62580.0,62579.0,0.33744]
[1728454521050,0.09145002,62580.0,62579.0,0.33644]
[1728454521541,0.09845002,62580.0,62579.0,0.33944]
[1728454521776,0.09345002,62580.0,62579.0,0.34644]
[1728454522000,0.09445002,62580.0,62579.0,0.35544]
[1728454522463,0.09445002,62580.0,62579.0,0.51085344]
[1728454523397,0.09445002,62580.0,62579.0,0.61585344]
[1728454524389,0.09445002,62580.0,62579.0,0.61385344]
[1728454524626,0.09445002,62580.0,62579.0,0.73369509]
[1728454528695,0.09445002,62580.0,62579.0,0.73569509]
[1728454529645,0.09445002,62580.0,62579.0,0.73369509]
[1728454529883,0.09445002,62580.0,62579.0,0.57828165]
[1728454531781,0.09445002,62580.0,62579.0,0.117442]
[1728454532015,0.09445002,62580.0,62579.0,0.23728365]
[1728454532258,0.11032809,62580.0,62579.0,0.23728365]
[1728454532497,0.27012309,62580.0,62579.0,0.23728365]
[1728454532731,0.27012309,62580.0,62579.0,0.13948365]
[1728454533696,0.10932809,62580.0,62579.0,0.13048365]
[1728454533902,0.10132809,62580.0,62579.0,0.12148365]
[1728454534165,0.26212309,62580.0,62579.0,0.12148365]
[1728454534384,0.10432809,62580.0,62579.0,0.12148365]
[1728454534879,0.26412309,62580.0,62579.0,0.12148365]
[1728454535105,0.10232809,62580.0,62579.0,0.12148365]
[1728454535359,0.26312309,62580.0,62579.0,0.12148365]
[1728454535600,0.26112309,62580.0,62579.0,0.001642]
[1728454536078,0.6064503,62580.0,62579.0,0.001642]
[1728454536294,0.53461315,62580.0,62579.0,0.001642]
[1728454537029,0.53361315,62580.0,62579.0,0.001642]
[1728454537700,0.53461315,62580.0,62579.0,0.001642]
[1728454538368,0.53361315,62580.0,62579.0,0.001642]
[1728454538825,0.53661315,62580.0,62579.0,0.001642]
[1728454539044,0.53861315,62580.0,62579.0,0.001642]
[1728454539526,0.53661315,62580.0,62579.0,0.001642]
[1728454539776,0.31198336,62580.0,62579.0,0.094742]
[1728454539973,0.15618836,62580.0,62579.0,0.094742]
[1728454540138,0.10832809,62580.0,62579.0,0.094742]
[1728454540311,0.10432809,62580.0,62579.0,0.094742]
[1728454540567,0.26112309,62580.0,62579.0,0.094742]
[1728454540770,0.10932809,62580.0,62579.0,0.094742]
[1728454541225,0.10432809,62580.0,62579.0,0.094742]
[1728454541415,0.10532809,62580.0,62579.0,0.094742]
[1728454541616,0.10432809,62580.0,62579.0,0.094742]
[1728454542040,0.10132809,62580.0,62579.0,0.094742]
[1728454545202,0.26112309,62580.0,62579.0,0.094742]
[1728454545655,0.26112309,62580.0,62579.0,0.001642]
[1728454546309,0.53349387,62580.0,62579.0,0.001642]
[1728454547459,0.53449387,62580.0,62579.0,0.001642]
[1728454548387,0.53649387,62580.0,62579.0,0.001642]
[1728454548667,0.37469887,62580.0,62579.0,0.001642]
[1728454548912,0.10232809,62580.0,62579.0,0.001642]
[1728454549238,0.10232809,62580.0,62579.0,0.38008165]
[1728454549239,0.10732809,62580.0,62579.0,0.38008165]
[1728454549487,0.10632809,62580.0,62579.0,0.38008165]
[1728454549708,0.11032809,62580.0,62579.0,0.38008165]
[1728454549930,0.10532809,62580.0,62579.0,0.38008165]
[1728454550173,0.10532809,62580.0,62579.0,0.22028365]
[1728454550408,0.10132809,62580.0,62579.0,0.103442]
[1728454550609,0.12637366,62580.0,62579.0,0.22328365]
[1728454551051,0.12637366,62580.0,62579.0,0.22728365]
[1728454551255,0.12637366,62580.0,62579.0,0.22328365]
[1728454551468,0.12637366,62580.0,62579.0,0.22028365]
[1728454552520,0.12637366,62580.0,62579.0,0.22128365]
[1728454552966,0.10132809,62580.0,62579.0,0.22128365]
[1728454553180,0.10432809,62580.0,62579.0,0.22128365]
[1728454553607,0.10132809,62580.0,62579.0,0.38108165]
[1728454553818,0.10132809,62580.0,62579.0,0.38308165]
[1728454554238,0.08545002,62580.0,62579.0,0.38308165]
[1728454554467,0.08545002,62580.0,62579.0,0.46318165]
[1728454554707,0.08545002,62580.0,62579.0,0.46618165]
[1728454554935,0.08545002,62580.0,62579.0,0.62781262]
[1728454555163,0.08545002,62580.0,62579.0,0.63081262]
[1728454555940,0.08545002,62580.0,62579.0,0.62181262]
[1728454556394,0.08645002,62580.0,62579.0,0.63181262]
[1728454556597,0.08745002,62580.0,62579.0,0.64381262]
[1728454556799,0.08645002,62580.0,62579.0,0.63581262]
[1728454557012,0.08645002,62580.0,62579.0,0.47839918]
[1728454557260,0.08745002,62580.0,62579.0,0.48939918]
[1728454558536,0.08745002,62580.0,62579.0,0.55211901]
[1728454566076,0.08745002,62580.0,62579.0,0.36955753]
[1728454566293,0.08745002,62580.0,62579.0,0.55211901]
[1728454569504,0.08745002,62580.0,62579.0,0.36534]
[1728454569728,0.10373681,62580.0,62579.0,0.54790148]
[1728454570885,0.08745002,62580.0,62579.0,0.54790148]
[1728454575988,0.08745002,62580.0,62579.0,0.70331492]
[1728454577325,0.08745002,62580.0,62579.0,0.70531492]
[1728454579926,0.08745002,62580.0,62579.0,0.70331492]
[1728454580375,0.08745002,62580.0,62579.0,0.64055863]
[1728454580835,0.08745002,62580.0,62579.0,0.64255863]
[1728454589468,0.08745002,62580.0,62579.0,0.64055863]
[1728454592676,0.08745002,62580.0,62579.0,0.64255863]
[1728454596331,0.08745002,62580.0,62579.0,0.52275344]
[1728454596566,0.08745002,62580.0,62579.0,0.64255863]
[1728454597898,0.08745002,62580.0,62579.0,0.64055863]
[1728454600796,0.10374513,62580.0,62579.0,0.64055863]
[1728454602945,0.08745002,62580.0,62579.0,0.64055863]
[1728454604750,0.08745002,62580.0,62579.0,0.48514519]
[1728454604976,0.1354164,62580.0,62579.0,0.14444719]
[1728454605179,0.08745002,62580.0,62579.0,0.30424519]
[1728454605393,0.10374513,62580.0,62579.0,0.30424519]
[1728454608331,0.15170717,62580.0,62579.0,0.30424519]
[1728454609033,0.15170717,62580.0,62579.0,0.40034519]
[1728454609471,0.10374513,62580.0,62579.0,0.40034519]
[1728454610418,0.15170717,62580.0,62579.0,0.40034519]
[1728454611118,0.10374513,62580.0,62579.0,0.40034519]
[1728454611328,0.15170717,62580.0,62579.0,0.40034519]
[1728454612865,0.15170643,62580.0,62579.0,0.40034519]
[1728454615112,0.10374513,62580.0,62579.0,0.40034519]
[1728454615552,0.15170643,62580.0,62579.0,0.40034519]
[1728454617792,0.15170607,62580.0,62579.0,0.40034519]
[1728454621388,0.15170615,62580.0,62579.0,0.40034519]
[1728454626400,0.15170517,62580.0,62579.0,0.40034519]
[1728454626860,0.10374513,62580.0,62579.0,0.40034519]
[1728454628036,0.08745002,62580.0,62579.0,0.40034519]
[1728454628500,0.08745002,62580.0,62579.0,0.48254519]
[1728454628982,0.10630341,62580.0,62579.0,0.48254519]
[1728454629220,0.10630341,62580.0,62579.0,0.63795863]
[1728454629717,0.08745002,62580.0,62579.0,0.63795863]
[1728454632813,0.31919011,62580.0,62579.0,0.024642]
[1728454633029,0.24724502,62580.0,62579.0,0.024642]
[1728454633276,0.42430091,62580.0,62579.0,0.024642]
[1728454633496,0.44315999,62580.0,62579.0,0.024642]
[1728454633983,0.44215999,62580.0,62579.0,0.013642]
[1728454634500,0.44215999,62580.0,62579.0,0.008642]
[1728454634916,0.44215999,62580.0,62579.0,0.011642]
[1728454635104,0.44115999,62580.0,62579.0,0.001642]
[1728454635252,0.44415999,62580.0,62579.0,0.001642]
[1728454635472,0.44915999,62580.0,62579.0,0.001642]
[1728454636714,0.56501022,62580.0,62579.0,0.001642]
[1728454637397,0.57001022,62580.0,62579.0,0.001642]
[1728454637612,0.57601022,62580.0,62579.0,0.002642]
[1728454637862,0.57101022,62580.0,62579.0,0.002642]
[1728454638079,0.57601022,62580.0,62579.0,0.002642]
[1728454638640,0.61157343,62580.0,62579.0,0.002642]
[1728454638897,0.68707343,62580.0,62579.0,0.002642]
[1728454639164,0.73227343,62580.0,62579.0,0.002642]
[1728454639422,0.83727343,62580.0,62579.0,0.002642]
[1728454639840,0.159828,62567.0,62566.0,0.000821]
[1728454640060,0.33824144,62567.0,62566.0,0.000821]
[1728454640279,0.51529733,62567.0,62566.0,0.000821]
[1728454640500,0.55918251,62567.0,62566.0,0.000821]
[1728454641182,0.57218251,62567.0,62566.0,0.002821]
[1728454641446,0.57218251,62567.0,62566.0,0.001821]
[1728454641728,0.56618251,62567.0,62566.0,0.000821]
[1728454641949,0.57518251,62567.0,62566.0,0.001821]
[1728454642166,0.58718251,62567.0,62566.0,0.002821]
[1728454642849,0.70679729,62567.0,62566.0,0.002821]
[1728454643292,0.58718251,62567.0,62566.0,0.002821]
[1728454643594,0.70679729,62567.0,62566.0,0.002821]
[1728454643816,0.79914848,62567.0,62566.0,0.001821]
[1728454644041,0.6715337,62567.0,62566.0,0.001821]
[1728454644263,0.6835337,62567.0,62566.0,0.002821]
[1728454644485,0.77815265,62567.0,62566.0,0.002821]
[1728454645175,0.75180146,62567.0,62566.0,0.002821]
[1728454645630,0.63170543,62567.0,62566.0,0.002821]
[1728454646598,0.72726887,62567.0,62566.0,0.002821]
[1728454646853,0.72726887,62567.0,62555.0,0.2397794]
[1728454646854,0.023,62559.0,62555.0,0.2397794]
[1728454647097,0.159856,62556.0,62555.0,0.2397794]
[1728454647312,0.36305653,62556.0,62555.0,0.2397794]
[1728454647551,0.159859,62555.0,62554.0,8.99990805]
[1728454647778,0.46153946,62555.0,62554.0,8.99990805]
[1728454648005,0.41377244,62555.0,62554.0,8.99990805]
[1728454648247,0.43628965,62555.0,62554.0,8.99990805]
[1728454648486,0.41377244,62555.0,62554.0,8.99990805]
[1728454648727,0.48405632,62555.0,62554.0,8.99990805]
[1728454648969,0.48405632,62555.0,62554.0,9.00090805]
[1728454649185,0.48403447,62555.0,62554.0,9.00090805]
[1728454649425,0.43628965,62555.0,62554.0,9.00090805]
[1728454650124,0.43628965,62555.0,62554.0,9.00190805]
[1728454650125,0.46134836,62555.0,62554.0,9.00190805]
[1728454650585,0.44128965,62555.0,62554.0,9.00190805]
[1728454651060,0.41877244,62555.0,62554.0,9.00190805]
[1728454651347,0.53902272,62555.0,62554.0,9.00090805]
[1728454651590,0.62360949,62555.0,62554.0,9.00090805]
[1728454651835,0.96593263,62555.0,62554.0,8.99990805]
[1728454652309,0.97993263,62555.0,62554.0,9.00090805]
[1728454652539,0.55302272,62555.0,62554.0,9.00090805]
[1728454653004,0.56002272,62555.0,62554.0,9.00190805]
[1728454653223,0.6076918,62555.0,62554.0,9.00190805]
[1728454653452,0.55302272,62555.0,62554.0,9.00090805]
[1728454653936,0.55302272,62555.0,62554.0,9.00190805]
[1728454653937,0.56602272,62555.0,62554.0,9.00190805]
[1728454654915,0.57083195,62555.0,62554.0,9.00190805]
[1728454655176,0.54577244,62555.0,62554.0,9.00190805]
[1728454659426,0.47027244,62555.0,62554.0,9.00190805]
[1728454659657,0.47027244,62555.0,62554.0,8.84720805]
[1728454661714,0.49533141,62555.0,62554.0,8.84720805]
[1728454661934,0.49033141,62555.0,62554.0,8.84720805]
[1728454665795,0.46527244,62555.0,62554.0,8.84720805]
[1728454669670,0.49033143,62555.0,62554.0,8.84720805]
[1728454670314,0.46527244,62555.0,62554.0,8.84720805]
[1728454673403,0.49033155,62555.0,62554.0,8.84720805]